[Event "US Masters 2024"]
[Site "Charlotte"]
[Date "2024.11.30"]
[Round "6.22"]
[White "Parkhov, Yair"]
[Black "Risteski, Emil"]
[Result "1-0"]
[ECO "A34"]
[WhiteElo "2523"]
[BlackElo "2378"]
[Annotator "TA"]
[PlyCount "137"]
[EventDate "2024.09.23"]
[EventType "swiss"]
[EventCountry "USA"]
[SourceTitle "playchess.com"]
[Source "ChessBase"]
[SourceQuality "1"]
[TimeControl "5400+30"]

{[%evp 15,137,51,58,45,49,47,64,56,58,54,55,59,51,39,54,50,48,46,51,52,50,41,69,53,46,64,68,29,30,39,33,34,31,25,37,26,26,22,31,32,23,0,0,0,0,0,9,0,0,0,39,0,5,0,0,0,24,0,0,0,0,0,0,0,0,0,15,23,22,0,36,31,39,39,39,0,0,0,0,0,0,0,0,0,0,0,0,0,0,0,8,8,8,8,8,4,7,0,0,0,10,0,0,0,23,0,0,0,0,0,1,1,14,8,6,6,17,0,0,0,0,0,112,112]} 1. c4 {[%emt 0:02:13]} c5 {[%emt 0:22:06]} 2. Nf3 {[%emt 0:00:08]} b6 {[%emt 0:00:22]} 3. Nc3 {[%emt 0:02:08]} Bb7 {[%emt 0:00:14]} 4. e4 {[%emt 0:02:44]} d6 {[%emt 0:01:09]} 5. d4 {[%emt 0:00:57]} cxd4 {[%emt 0:00:05]} 6. Nxd4 {[%emt 0:00:05]} Nf6 {[%emt 0:00:04]} 7. Bd3 {[%emt 0:01:04]} g6 {[%emt 0:00:32]} 8. O-O {[%emt 0:07:14]} Bg7 {[%emt 0:00:05]} 9. Bg5 {[%emt 0:04:28]} O-O {[%emt 0:00:35]} 10. Qd2 {[%emt 0:03:29]} Nc6 {[%emt 0:00:26]} 11. Nxc6 {[%emt 0:00:27] White is slightly better.} Bxc6 {[%emt 0:00:06]} 12. Rfe1 {[%emt 0:01:39]} Rc8 {[%emt 0:01:56]} 13. Bf1 {[%emt 0:06:37]} Re8 {[%emt 0:03:47]} 14. Rad1 {[%emt 0:03:04]} Nd7 {[%emt 0:02:49]} 15. Nd5 {[%emt 0:07:04]} a6 {[%emt 0:06:34]} 16. b3 {[%emt 0:12:49]} Nc5 {[%emt 0:01:19]} 17. Qe3 {[%emt 0:10:15]} Bxd5 {[%emt 0:08:21]} 18. exd5 {[%emt 0:01:59]} Qc7 {[%emt 0:00:11]} 19. Bh6 {[%emt 0:03:18] White is more active.} (19. Bxe7 Bf8 20. b4 Rxe7 $19) 19... e5 {[%emt 0:07:36]} 20. dxe6 {[%emt 0:00:52]} Rxe6 {[%emt 0:00:08]} 21. Qc1 {[%emt 0:00:19]} Bxh6 {[%emt 0:01:07]} 22. Qxh6 {[%emt 0:00:09]} Rce8 {[%emt 0:00:09]} 23. Rxe6 {[%emt 0:00:33]} Rxe6 {[%emt 0:00:10]} 24. g3 {[%emt 0:09:21]} Qe7 {[%emt 0:02:47]} 25. Qd2 {[%emt 0:00:19]} a5 {[%emt 0:00:17]} 26. h4 {[%emt 0:02:24]} Ne4 {[%emt 0:05:30]} 27. Qd4 {[%emt 0:00:42]} Nc5 {[%emt 0:00:03]} 28. Kh2 {[%emt 0:09:46]} Re1 {[%emt 0:01:22]} 29. Bg2 {[%emt 0:01:21]} (29. Qxd6 $2 {is the wrong capture.} Qxd6 30. Rxd6 Rxf1 $19) 29... Rxd1 {[%emt 0:00:53]} 30. Qxd1 $11 {[%emt 0:00:04][%mdl 4096] Endgame. KQB-KQN} Qe5 {[%emt 0:00:06]} 31. Bd5 {[%emt 0:00:47]} Kg7 {[%emt 0:01:02]} 32. Kg2 {[%emt 0:01:31]} f5 {[%emt 0:02:57]} 33. Qd2 {[%emt 0:01:19]} h6 {[%emt 0:02:40]} 34. Bf3 {[%emt 0:01:19]} Ne6 {[%emt 0:12:18]} 35. Bd5 {[%emt 0:01:06]} Nc5 {[%emt 0:00:06]} 36. Bf3 {[%emt 0:01:19]} Ne6 {[%emt 0:00:05]} 37. Bc6 {[%emt 0:00:23]} Qd4 {[%emt 0:01:06]} 38. Qe1 {[%emt 0:00:43]} Qe5 {[%emt 0:00:06]} 39. Qd1 {[%emt 0:00:21]} Qd4 {[%emt 0:03:12]} 40. Qf3 {[%emt 0:00:13]} Qe5 {[%emt 0:00:07]} 41. Ba8 {[%emt 0:01:28]} Nc5 {[%emt 0:00:37] Wards off Qb7+} 42. Bd5 {[%emt 0:01:05]} Qd4 {[%emt 0:09:40]} 43. h5 {[%emt 0:01:03]} Kf6 {[%emt 0:03:38]} 44. hxg6 {[%emt 0:00:04]} Kxg6 {[%emt 0:00:04]} 45. Bc6 {[%emt 0:00:38]} Nd3 {[%emt 0:00:56]} 46. Qe2 {[%emt 0:00:25] Repels Ne1+} Ne5 $1 {[%emt 0:00:21]} 47. Bd5 {[%emt 0:00:07] [#] Threatens to win with f4.} f4 {[%emt 0:01:26]} 48. Qc2+ {[%emt 0:00:37]} Kg7 {[%emt 0:00:30]} 49. Qf5 {[%emt 0:00:32]} fxg3 {[%emt 0:00:08]} 50. fxg3 {[%emt 0:00:25]} Qd2+ {[%emt 0:01:23]} 51. Kh3 {[%emt 0:00:13]} Qg5 {[%emt 0:00:07]} 52. Qf2 {[%emt 0:00:22]} Qd8 {[%emt 0:02:31]} 53. Kg2 {[%emt 0:00:16]} Qc7 {[%emt 0:00:09]} 54. Qd4 {[%emt 0:00:54]} Qc5 {[%emt 0:00:32]} 55. Qh4 {[%emt 0:00:05]} Qc7 {[%emt 0:00:23] Repels Qe7+} 56. Qf4 {[%emt 0:00:20]} Qc5 {[%emt 0:01:01]} 57. Qh4 {[%emt 0:02:21]} Qc7 {[%emt 0:00:03] Inhibits Qe7+.} 58. Qh5 {[%emt 0:00:40]} Qe7 {[%emt 0:00:33] Prevents Qe8} 59. Qf5 {[%emt 0:00:17]} Qd7 {[%emt 0:00:54]} 60. Qe4 {[%emt 0:00:12]} (60. Qxd7+ {simplifies} Nxd7 61. Kf3 Nf6 62. Be6) 60... Qe7 {[%emt 0:00:14]} 61. Qd4 {[%emt 0:00:34]} Qc7 {[%emt 0:00:04]} 62. a3 {[%emt 0:00:23]} Qd8 {[%emt 0:00:04]} 63. b4 {[%emt 0:00:26]} axb4 {[%emt 0:00:03]} 64. axb4 {[%emt 0:00:05]} Qc7 {[%emt 0:00:23]} 65. Qa1 {[%emt 0:00:18]} Qb8 {[%emt 0:01:50]} 66. Qa6 {[%emt 0:00:45]} h5 {[%emt 0:00:50]} 67. Qa1 {[%emt 0:00:40]} Qd8 {[%emt 0:00:34]} 68. Qd4 {[%emt 0:00:38]} Qg5 {[%emt 0:00:32]} (68... Qf6 $11) 69. Qxb6 {[%emt 0:00:24] Weighted Error Value: White=0.07 (flawless) /Black=0.04 (flawless) .  Mistake:       	---       	Black=1      Inaccurate:     	White=3     	Black=3      OK:         	White=10    	Black=32     Best:        	White=2     	Black=3      Strong:       	---       	Black=1} 1-0

[Event "US Masters 2024"]
[Site "Charlotte"]
[Date "2024.11.30"]
[Round "6.24"]
[White "Jacobson, Aaron"]
[Black "Belenkaya, Dina"]
[Result "0-1"]
[ECO "E18"]
[WhiteElo "2368"]
[BlackElo "2151"]
[Annotator "TA"]
[PlyCount "140"]
[EventDate "2024.09.23"]
[EventType "swiss"]
[EventCountry "USA"]
[SourceTitle "playchess.com"]
[Source "ChessBase"]
[SourceQuality "1"]
[TimeControl "5400+30"]

{[%evp 17,140,21,23,0,17,9,14,0,20,27,26,16,14,9,12,11,13,25,91,101,100,99,94,76,78,71,164,167,357,156,155,147,158,157,172,163,158,166,178,184,245,183,281,260,597,599,570,554,716,486,577,214,225,232,214,234,227,227,236,170,193,213,193,122,113,138,181,48,48,51,51,51,51,12,12,-2,0,-16,-16,-42,-42,-42,0,-28,0,-42,-42,-42,-42,-231,-64,-29958,-29960,-29967,-29968,-29968,-29970,-29970,-29971,-29972,-29970,-29970,-29971,-29973,-29970,-29969,-29970,-29971,-29972,-29972,-29973,-29975,-29976,-29976,-29975,-29978,-29979,-29979,-29979,-29979,-29980,-29980,-29981,-29981,-29982]} 1. d4 {[%emt 0:02:20]} Nf6 {[%emt 0:03:27]} 2. c4 {[%emt 0:00:09]} e6 {[%emt 0:00:11]} 3. Nf3 {[%emt 0:00:12]} d5 {[%emt 0:00:06]} 4. Nc3 {[%emt 0:00:05]} b6 {[%emt 0:02:10]} 5. cxd5 {[%emt 0:02:19]} exd5 {[%emt 0:05:50]} 6. g3 {[%emt 0:07:44]} Be7 {[%emt 0:05:23]} 7. Bg2 {[%emt 1:21:11]} O-O {[%emt 0:00:56]} 8. O-O {[%emt 0:00:00]} Bb7 {[%emt 0:04:16]} 9. Bf4 {[%emt 0:00:00]} Nbd7 {[%emt 0:04:56]} 10. Nb5 {[%emt 0:00:00]} Ne8 {[%emt 0:03:38][%cal Bf6e8,Be8d6,Bd6c4,Bc4a3][%mdl 32]} 11. Rc1 {[%emt 0:00:00]} c6 {[%emt 0:00:38]} 12. Nc3 {[%emt 0:00:00]} Nd6 {[%emt 0:00:59]} 13. h4 {[%emt 0:00:00]} Re8 {[%emt 0:01:36]} 14. Ne5 {[%emt 0:00:00]} Nxe5 {[%emt 0:02:41]} 15. dxe5 {[%emt 0:00:00]} Nc4 {[%emt 0:01:05]} 16. b3 {[%emt 0:00:00]} Na3 {[%emt 0:04:11]} 17. Qd3 {[%emt 0:00:00]} a5 {[%emt 0:11:44]} (17... h6 $11) 18. Rfd1 $16 {[%emt 0:00:00]} Ba6 {[%emt 0:00:28]} 19. Qf3 {[%emt 0:00:00][%cal Rc3d5]} Bb4 {[%emt 0:07:50]} 20. Qg4 {[%emt 0:00:00]} Bc8 {[%emt 0:01:11]} 21. Qh5 {[%emt 0:00:00][%cal Rc3d5]} Be6 {[%emt 0:08:01]} (21... Bxc3 $16 22. Rxc3 Qd7) 22. Ne4 $18 {[%emt 0:00:00]} Qc8 $2 {[%emt 0:18:18]} (22... g6 {might work better.} 23. Qh6 Bf8) 23. Ng5 {[%emt 0:00:00]} (23. Nf6+ $1 $18 {and the rest is easy.} gxf6 24. exf6) 23... h6 $16 {[%emt 0:00:14]} 24. Nxe6 {[%emt 0:00:00]} Qxe6 {[%emt 0:02:33]} 25. e4 {[%emt 0:00:00]} d4 {[%emt 0:01:54]} 26. Rxd4 {[%emt 0:00:00]} Nb5 {[%emt 0:00:29]} 27. Rd3 {[%emt 0:00:00]} a4 {[%emt 0:03:11]} 28. Bf3 {[%emt 0:00:00]} axb3 {[%emt 0:01:41]} (28... Red8 $142 29. Bg4 g6) 29. axb3 {[%emt 0:00:00]} Bc5 {[%emt 0:01:51]} (29... Red8 $142 30. Bg4 Qe7) 30. Bg4 $18 {[%emt 0:00:00]} Qe7 $2 {[%emt 0:00:25]} (30... g6 {is more resistant.}) 31. Rd7 {[%emt 0:00:00]} Qf8 {[%emt 0:00:05] [#] Black is weak on the light squares} 32. e6 $1 {[%emt 0:08:00][%mdl 512]} Re7 {[%emt 0:00:12]} (32... fxe6 33. Qg6) 33. Rxe7 {[%emt 0:01:36]} Qxe7 {[%emt 0:00:18]} 34. exf7+ $2 {[%emt 0:03:54]} (34. b4 Bxf2+ 35. Kxf2) 34... Qxf7 {[%emt 0:00:10]} 35. Qxf7+ {[%emt 0:00:00]} Kxf7 {[%emt 0:00:00] [#]} 36. b4 $1 {[%mdl 512]} Bxb4 37. Rxc6 Bc5 {[%emt 0:06:22]} 38. Be2 {[%emt 0:02:00] This pair of bishops is nice.} Nd4 {[%emt 0:00:30]} 39. Rc7+ {[%emt 0:00:30]} Kf8 {[%emt 0:00:00]} 40. Bg4 {[%emt 0:00:00]} (40. Bc4 $18 {Threatens to win with Rf7+.} Ra4 41. Bd5 Ne2+ 42. Kg2 Nxf4+ 43. gxf4) 40... Nb5 $16 {[%emt 0:00:00]} 41. Rd7 {[%emt 0:00:12]} Ra2 {[%emt 0:00:00]} 42. Rd2 {[%emt 0:00:31]} (42. Bh5 $18) 42... Rxd2 $14 {[%emt 0:00:00]} 43. Bxd2 {[%emt 0:00:03][%mdl 4096] Endgame KBB-KBN. White is a pawn up.} Nd6 $1 {[%emt 0:00:00]} 44. Bf3 {[%emt 0:00:44]} b5 $1 {[%emt 0:00:26]} 45. Kf1 {[%emt 0:00:49]} b4 $1 {[%emt 0:00:11]} 46. Ke2 {[%emt 0:00:36]} Nc4 {[%emt 0:03:23]} 47. Bc1 {[%emt 0:00:32]} b3 {[%emt 0:00:00][%mdl 1024] Black has compensation.} 48. Kd3 {[%emt 0:00:31]} Ne5+ {[%emt 0:00:00]} (48... b2 49. Bxb2 Nxb2+ 50. Ke2 $19) 49. Ke2 {[%emt 0:00:02]} Nc4 {[%emt 0:00:00]} 50. Kd3 {[%emt 0:00:30]} Ne5+ {[%emt 0:00:00]} (50... b2 $5 51. Bxb2 Nxb2+ 52. Ke2 Kf7 $17) 51. Ke2 {[%emt 0:00:30]} Nxf3 {[%emt 0:00:00]} 52. Kxf3 $15 {[%emt 0:00:30] KB-KB. White is a pawn up.} Bd4 {Prevents Bb2} 53. Kf4 $2 {[%emt 0:00:30]} (53. Ba3+ Kf7 54. h5 b2 55. Bxb2 Bxb2 $19) ({White should try} 53. Kg4 $15) 53... Kf7 $2 {[%emt 0:00:32]} (53... Bxf2 $19 {and ...Bd4 would now be decisive} 54. Bb2 g6) 54. h5 $2 {[%emt 0:00:30][%mdl 8192] [#]} (54. Kg4 $15) 54... Kf6 $1 {[%emt 0:00:30]} ({Weaker is} 54... Bxf2 55. Bb2 $17) 55. f3 {[%emt 0:00:30]} b2 {[%emt 0:00:30]} 56. Bxb2 {[%emt 0:00:30]} Bxb2 {[%emt 0:00:30] KB-KP} 57. Kg4 {[%emt 0:00:30]} Ke5 {[%emt 0:00:30]} 58. Kh4 {[%emt 0:00:30]} Ba3 {[%emt 0:00:30]} 59. Kh3 {[%emt 0:00:30]} Be7 {[%emt 0:00:30]} 60. Kg4 {[%emt 0:00:30]} Bd8 {[%emt 0:00:30]} 61. Kh3 {[%emt 0:00:30]} Ba5 {[%emt 0:00:30]} 62. Kg4 {[%emt 0:00:40]} Bc3 {[%emt 0:00:41]} 63. Kh3 {[%emt 0:00:30]} Kd4 {[%emt 0:00:30]} 64. Kh4 {[%emt 0:00:30]} Ke3 {[%emt 0:00:30]} 65. Kg4 {[%emt 0:00:30]} Bb2 {[%emt 0:00:30]} 66. Kf5 {[%emt 0:00:30]} Kxf3 {[%emt 0:00:30]} 67. g4 {[%emt 0:00:30]} Bf6 {[%emt 0:00:30]} 68. e5 {[%emt 0:00:30] [#]} Bxe5 $1 {[%emt 0:00:30][%mdl 512]} 69. g5 {[%emt 0:00:30] [#]} hxg5 $1 {[%emt 0:00:30]} 70. Kxg5 {[%emt 0:00:30] [#]} Bf4+ $1 {[%emt 0:00:30]} 0-1